fUST/lending_fUST_20240817
["ID","MTS","AMOUNT","RATE_DAILY","PERIOD"]
[335099088,1723824682115,-18805.74285605,0.00046,30]
[335099089,1723824682125,-935.40157684,0.00046,30]
[335099090,1723824682134,-500.0,0.00046027,120]
[335099091,1723824682145,-500.0,0.00046027,120]
[335099092,1723824682155,-500.0,0.00046027,120]
[335099093,1723824682165,-2456.91,0.00046027,120]
[335099094,1723824682175,-500.0,0.00046027,120]
[335099095,1723824682185,-500.0,0.00046027,120]
[335099096,1723824682195,-463.39781083,0.00046027,120]
[335099097,1723824682204,-503.41,0.00046027,120]
[335099098,1723824682214,-625.55479786,0.00046027,120]
[335099099,1723824682224,-500.0,0.00046027,120]
[335099100,1723824682236,-500.0,0.00046027,120]
[335099101,1723824682246,-500.0,0.00046027,120]
[335099102,1723824682255,-500.0,0.00046027,120]
[335099103,1723824682272,-500.0,0.00046027,7]
[335099104,1723824682286,-590.69,0.00046027,120]
[335099105,1723824682296,-500.0,0.00046027,120]
[335099106,1723824682308,-516.88207452,0.00046027,120]
[335099107,1723824682318,-500.0,0.00046027,120]
[335099108,1723824682328,-645.31,0.00046027,120]
[335099109,1723824682338,-546.53878453,0.00046027,120]
[335099110,1723824682351,-699.13,0.00046027,120]
[335099111,1723824682360,-500.0,0.00046027,120]
[335099112,1723824682369,-500.0,0.00046027,120]
[335099113,1723824682379,-200.0,0.00046027,7]
[335099114,1723824682389,-644.7,0.00046027,120]
[335099115,1723824682399,-544.51,0.00046027,120]
[335099116,1723824682409,-693.59,0.00046027,120]
[335099117,1723824682419,-2148.57,0.00046027,120]
[335099118,1723824682429,-548.58,0.00046027,120]
[335099119,1723824682438,-500.0,0.00046027,120]
[335099120,1723824682448,-500.0,0.00046027,120]
[335099121,1723824682459,-1328.88,0.00046027,120]
[335099122,1723824682468,-500.0,0.00046027,120]
[335099123,1723824682478,-500.0,0.00046027,120]
[335099124,1723824682487,-500.0,0.00046027,120]
[335099125,1723824682497,-500.0,0.00046027,120]
[335099126,1723824682507,-505.0233354,0.00046027,120]
[335099127,1723824682516,-635.25,0.00046027,120]
[335099128,1723824682526,-500.0,0.00046027,120]
[335099129,1723824682535,-500.0,0.00046027,120]
[335099130,1723824682545,-1192.76,0.00046027,7]
[335099131,1723824682555,-534.46553213,0.00046027,120]
[335099132,1723824682565,-500.0,0.00046027,120]
[335099133,1723824682575,-1451.49,0.00046027,60]
[335099134,1723824682586,-500.0,0.00046027,120]
[335099135,1723824682596,-500.0,0.00046027,120]
[335099136,1723824682605,-500.0,0.00046027,120]
[335099137,1723824682615,-500.0,0.00046027,120]
[335099138,1723824682625,-918.61,0.00046027,120]
[335099139,1723824682635,-500.0,0.00046027,120]
[335099140,1723824682644,-596.74,0.00046027,120]
[335099141,1723824682654,-500.0,0.00046027,120]
[335099142,1723824682664,-500.0,0.00046027,120]
[335099143,1723824682674,-500.0,0.00046027,120]
[335099144,1723824682684,-605.24478244,0.00046027,120]
[335099145,1723824682694,-547.91,0.00046027,120]
[335099146,1723824682703,-500.0,0.00046027,120]
[335099147,1723824682713,-629.55,0.00046027,120]
[335099148,1723824682723,-643.97,0.00046027,120]
[335099149,1723824682732,-500.0,0.00046027,120]
[335099150,1723824682742,-500.0,0.00046027,120]
[335099151,1723824682752,-500.0,0.00046027,120]
[335099152,1723824682762,-500.0,0.00046027,120]
[335099153,1723824682772,-609.08,0.00046027,120]
[335099154,1723824682782,-1016.45,0.00046027,120]
[335099155,1723824682791,-788.01,0.00046027,120]
[335099156,1723824682802,-521.16171678,0.00046027,120]
[335099157,1723824682813,-518.24,0.00046027,120]
[335099158,1723824682823,-500.0,0.00046027,2]
[335099159,1723824682832,-894.34,0.00046027,120]
[335099160,1723824682842,-500.0,0.00046027,120]
[335099161,1723824682853,-500.0,0.00046027,120]
[335099162,1723824682863,-643.91,0.00046027,120]
[335099163,1723824682873,-900.79,0.00046027,120]
[335099164,1723824682882,-884.47,0.00046027,120]
[335099165,1723824682893,-500.0,0.00046027,120]
[335099166,1723824682904,-737.86,0.00046027,120]
[335099167,1723824682914,-1177.09,0.00046027,120]
[335099168,1723824682924,-500.0,0.00046027,120]
[335099169,1723824682934,-746.07,0.00046027,120]
[335099170,1723824682944,-1036.78,0.00046027,120]
[335099171,1723824682954,-668.74,0.00046027,120]
[335099172,1723824682964,-673.85,0.00046027,120]
[335099173,1723824682975,-783.75,0.00046027,120]
[335099174,1723824682986,-902.95,0.00046027,120]
[335099175,1723824682996,-500.0,0.00046027,120]
[335099176,1723824683006,-563.5,0.00046027,120]
[335099177,1723824683016,-545.31,0.00046027,120]
[335099178,1723824683026,-631.65,0.00046027,120]
[335099179,1723824683037,-500.0,0.00046027,120]
[335099180,1723824683047,-1145.47,0.00046027,120]
[335099181,1723824683058,-901.73,0.00046027,120]
[335099182,1723824683068,-500.0,0.00046027,120]
[335099183,1723824683079,-10260.67,0.00046027,120]
[335099184,1723824683090,-500.0,0.00046027,120]
[335099185,1723824683102,-500.0,0.00046027,120]
[335099186,1723824683112,-764.92,0.00046027,120]
[335099187,1723824683121,-583.83050467,0.00046027,120]
[335099188,1723824683131,-716.98,0.00046027,120]
[335099189,1723824683140,-2987.82,0.00046027,21]
[335099190,1723824683151,-666.64,0.00046027,120]
[335099191,1723824683160,-1201.98,0.00046027,120]
[335099192,1723824683170,-637.84,0.00046027,120]
[335099193,1723824683181,-500.0,0.00046027,120]
[335099194,1723824683191,-2511.6,0.00046027,120]
[335099195,1723824683201,-723.54,0.00046027,120]
[335099196,1723824683211,-576.16,0.00046027,120]
[335099197,1723824683222,-500.0,0.00046027,120]
[335099198,1723824683235,-500.0,0.00046027,120]
[335099199,1723824683245,-1882.03,0.00046027,120]
[335099200,1723824683255,-1029.66,0.00046027,120]
[335099201,1723824683266,-1896.05,0.00046027,120]
[335099202,1723824683276,-4568.8,0.00046027,120]
[335099203,1723824683285,-815.8,0.00046027,120]
[335099204,1723824683295,-947.25,0.00046027,120]
[335099205,1723824683307,-797.6,0.00046027,120]
[335099206,1723824683318,-975.37,0.00046027,120]
[335099207,1723824683327,-279.06892265,0.00046027,120]
[335099208,1723824683339,-500.0,0.00046027,120]
[335099209,1723824683350,-1724.04,0.00046027,120]
[335099210,1723824683360,-1061.46,0.00046027,120]
[335099211,1723824683370,-500.0,0.00046027,120]
[335099212,1723824683380,-848.93,0.00046027,120]
[335099213,1723824683391,-1146.8,0.00046027,120]
[335099214,1723824683400,-500.0,0.00046027,120]
[335099215,1723824683410,-500.0,0.00046027,120]
[335099216,1723824683420,-500.0,0.00046027,120]
[335099217,1723824683430,-500.0,0.00046027,120]
[335099218,1723824683439,-979.65,0.00046027,120]
[335099219,1723824683449,-500.0,0.00046027,120]
[335099220,1723824683459,-433.53590819,0.00046027,120]
[335099221,1723824683469,-894.36,0.00046027,120]
[335099222,1723824683479,-500.0,0.00046027,120]
[335099223,1723824683489,-500.0,0.00046027,120]
[335099224,1723824683499,-645.74,0.00046027,120]
[335099225,1723824683510,-641.42,0.00046027,120]
[335099226,1723824683519,-1321.3,0.00046027,120]
[335099227,1723824683529,-504.7361125,0.00046027,120]
[335099228,1723824683539,-13031.02,0.00046027,120]
[335099229,1723824683549,-936.44,0.00046027,120]
[335099230,1723824683558,-673.1,0.00046027,120]
[335099231,1723824683568,-526.95,0.00046027,120]
[335099232,1723824683578,-561.51,0.00046027,120]
[335099233,1723824683588,-500.0,0.00046027,120]
[335099234,1723824683599,-506.3226775,0.00046027,120]
[335099235,1723824683609,-500.0,0.00046027,120]
[335099236,1723824683619,-641.46,0.00046027,120]
[335099237,1723824683628,-2425.41,0.00046027,120]
[335099238,1723824683639,-1762.68,0.00046027,120]
[335099239,1723824683649,-500.0,0.00046027,120]
[335099240,1723824683659,-500.0,0.00046027,120]
[335099241,1723824683669,-2314.36,0.00046027,120]
[335099242,1723824683819,-700.74,0.00046027,120]
[335099243,1723824683829,-666.41,0.00046027,120]
[335099244,1723824683839,-1019.62,0.00046027,120]
[335099245,1723824683850,-500.0,0.00046027,120]
[335099246,1723824683860,-664.99,0.00046027,120]
[335099247,1723824683870,-839.23,0.00046027,120]
[335099248,1723824683880,-4725.59,0.00046027,120]
[335099249,1723824683890,-567.41,0.00046027,120]
[335099250,1723824683900,-833.73,0.00046027,120]
[335099251,1723824683910,-1124.87,0.00046027,120]
[335099252,1723824683920,-616.41,0.00046027,120]
[335099253,1723824683930,-500.0,0.00046027,120]
[335099254,1723824683940,-628.45,0.00046027,120]
[335099255,1723824683949,-500.0,0.00046027,120]
[335099256,1723824683959,-519.03,0.00046027,120]
[335099257,1723824683969,-1015.36,0.00046027,120]
[335099258,1723824683979,-707.5,0.00046027,120]
[335099259,1723824683988,-6729.3,0.00046027,120]
[335099260,1723824683998,-151.0,0.0004611,120]
[335099261,1723824684008,-152.5529316,0.00046239,60]
[335099262,1723824684018,-159.21,0.000463,39]
[335099263,1723824684027,-159.21,0.000463,39]
[335099264,1723824684039,-500.0,0.00046301,120]
[335099265,1723824684050,-500.0,0.00046301,120]
[335099266,1723824684060,-500.0,0.00046301,120]
[335099267,1723824684070,-2456.91,0.00046301,120]
[335099268,1723824684079,-349.40376855,0.00046301,120]
[335099269,1723824684089,-500.0,0.00046301,120]
[335099270,1723824684100,-503.41,0.00046301,120]
[335099271,1723824684110,-500.0,0.00046301,120]
[335099272,1723824684119,-500.0,0.00046301,120]
[335099273,1723824684128,-628.2544686,0.00046301,120]
[335099274,1723824684139,-500.0,0.00046301,120]
[335099275,1723824684149,-500.0,0.00046301,7]
[335099276,1723824684159,-590.69,0.00046301,120]
[335099277,1723824684168,-500.0,0.00046301,120]
[335099278,1723824684178,-500.0,0.00046301,120]
[335099279,1723824684188,-645.31,0.00046301,120]
[335099280,1723824684198,-699.13,0.00046301,120]
[335099281,1723824684208,-500.0,0.00046301,120]
[335099282,1723824684218,-500.0,0.00046301,120]
[335099283,1723824684231,-200.0,0.00046301,7]
[335099284,1723824684241,-644.7,0.00046301,120]
[335099285,1723824684251,-544.51,0.00046301,120]
[335099286,1723824684260,-693.59,0.00046301,120]
[335099287,1723824684271,-2148.57,0.00046301,120]
[335099288,1723824684280,-548.58,0.00046301,120]
[335099289,1723824684290,-500.0,0.00046301,120]
[335099290,1723824684300,-500.0,0.00046301,120]
[335099291,1723824684311,-1328.88,0.00046301,120]
[335099292,1723824684322,-500.0,0.00046301,120]
[335099293,1723824684331,-500.0,0.00046301,120]
[335099294,1723824684341,-500.0,0.00046301,120]
[335099295,1723824684352,-500.0,0.00046301,120]
[335099296,1723824684369,-635.25,0.00046301,120]
[335099297,1723824684379,-500.0,0.00046301,120]
[335099298,1723824684388,-500.0,0.00046301,120]
[335099299,1723824684399,-1192.76,0.00046301,7]
[335099300,1723824684409,-500.0,0.00046301,120]
[335099301,1723824684419,-1451.49,0.00046301,60]
[335099302,1723824684429,-500.0,0.00046301,120]
[335099303,1723824684438,-500.0,0.00046301,120]
[335099304,1723824684448,-500.0,0.00046301,120]
[335099305,1723824684458,-500.0,0.00046301,120]
[335099306,1723824684468,-918.61,0.00046301,120]
[335099307,1723824684478,-500.0,0.00046301,120]
[335099308,1723824684488,-596.74,0.00046301,120]
[335099309,1723824684497,-500.0,0.00046301,120]
[335099310,1723824684507,-500.0,0.00046301,120]
[335099311,1723824684517,-500.0,0.00046301,120]
[335099312,1723824684526,-547.91,0.00046301,120]
[335099313,1723824684537,-500.0,0.00046301,120]
[335099314,1723824684547,-629.55,0.00046301,120]
[335099315,1723824684557,-643.97,0.00046301,120]
[335099316,1723824684567,-500.0,0.00046301,120]
[335099317,1723824684576,-500.0,0.00046301,120]
[335099318,1723824684587,-500.0,0.00046301,120]
[335099319,1723824684597,-500.0,0.00046301,120]
[335099320,1723824684608,-609.08,0.00046301,120]
[335099321,1723824684617,-1016.45,0.00046301,120]
[335099322,1723824684627,-788.01,0.00046301,120]
[335099323,1723824684637,-518.24,0.00046301,120]
[335099324,1723824684647,-500.0,0.00046301,2]
[335099325,1723824684657,-500.0,0.00046301,120]
[335099326,1723824684667,-894.34,0.00046301,120]
[335099327,1723824684677,-500.0,0.00046301,120]
[335099328,1723824684689,-643.91,0.00046301,120]
[335099329,1723824684700,-900.79,0.00046301,120]
[335099330,1723824684711,-884.47,0.00046301,120]
[335099331,1723824684723,-500.0,0.00046301,120]
[335099332,1723824684734,-737.86,0.00046301,120]
[335099333,1723824684744,-1177.09,0.00046301,120]
[335099334,1723824684754,-500.0,0.00046301,120]
[335099335,1723824684764,-746.07,0.00046301,120]
[335099336,1723824684774,-1036.78,0.00046301,120]
[335099337,1723824684784,-668.74,0.00046301,120]
[335099338,1723824684794,-673.85,0.00046301,120]
[335099339,1723824684805,-783.75,0.00046301,120]
[335099340,1723824684815,-902.95,0.00046301,120]
[335099341,1723824684826,-250.58143102,0.00046301,120]
[335099342,1723824684836,-563.5,0.00046301,120]
[335099343,1723824684848,-545.31,0.00046301,120]
[335099344,1723824684859,-631.65,0.00046301,120]
[335099345,1723824684870,-500.0,0.00046301,120]
[335099346,1723824684881,-1145.47,0.00046301,120]
[335099347,1723824684891,-901.73,0.00046301,120]
[335099348,1723824684903,-500.0,0.00046301,120]
[335099349,1723824684914,-10260.67,0.00046301,120]
[335099350,1723824684924,-500.0,0.00046301,120]
[335099351,1723824684933,-269.26603057,0.00046301,120]
[335099352,1723824684943,-764.92,0.00046301,120]
[335099353,1723824684953,-716.98,0.00046301,120]
[335099354,1723824684962,-2987.82,0.00046301,21]
[335099355,1723824684972,-666.64,0.00046301,120]
[335099356,1723824684981,-1201.98,0.00046301,120]
[335099357,1723824684991,-637.84,0.00046301,120]
[335099358,1723824685002,-500.0,0.00046301,120]
[335099359,1723824685013,-2511.6,0.00046301,120]
[335099360,1723824685022,-723.54,0.00046301,120]
[335099361,1723824685032,-576.16,0.00046301,120]
[335099362,1723824685042,-500.0,0.00046301,120]
[335099363,1723824685052,-222.58817228,0.00046301,120]
[335099364,1723824685061,-1882.03,0.00046301,120]
[335099365,1723824685071,-1029.66,0.00046301,120]
[335099366,1723824685081,-1896.05,0.00046301,120]
[335099367,1723824685090,-4568.8,0.00046301,120]
[335099368,1723824685102,-815.8,0.00046301,120]
[335099369,1723824685112,-947.25,0.00046301,120]
[335099370,1723824685122,-797.6,0.00046301,120]
[335099371,1723824685132,-975.37,0.00046301,120]
[335099372,1723824685142,-489.8084,0.00046301,120]
[335099373,1723824685152,-1724.04,0.00046301,120]
[335099374,1723824685161,-1061.46,0.00046301,120]
[335099375,1723824685172,-500.0,0.00046301,120]
[335099376,1723824685181,-848.93,0.00046301,120]
[335099377,1723824685190,-1146.8,0.00046301,120]
[335099378,1723824685200,-560.79581065,0.00046301,120]
[335099379,1723824685210,-500.0,0.00046301,120]
[335099380,1723824685219,-500.0,0.00046301,120]
[335099381,1723824685233,-500.0,0.00046301,120]
[335099382,1723824685243,-979.65,0.00046301,120]
[335099383,1723824685252,-500.0,0.00046301,120]
[335099384,1723824685262,-894.36,0.00046301,120]
[335099385,1723824685273,-500.0,0.00046301,120]
[335099386,1723824685283,-500.0,0.00046301,120]
[335099387,1723824685293,-645.74,0.00046301,120]
[335099388,1723824685302,-641.42,0.00046301,120]
[335099389,1723824685314,-1321.3,0.00046301,120]
[335099390,1723824685324,-13031.02,0.00046301,120]
[335099391,1723824685333,-936.44,0.00046301,120]
[335099392,1723824685343,-673.1,0.00046301,120]
[335099393,1723824685354,-526.95,0.00046301,120]
[335099394,1723824685364,-561.51,0.00046301,120]
[335099395,1723824685374,-500.0,0.00046301,120]
[335099396,1723824685384,-215.21110324,0.00046301,120]
[335099397,1723824685393,-641.46,0.00046301,120]
[335099398,1723824685403,-2425.41,0.00046301,120]
[335099399,1723824685412,-1762.68,0.00046301,120]
[335099400,1723824685422,-500.0,0.00046301,120]
[335099401,1723824685431,-500.0,0.00046301,120]
[335099402,1723824685442,-2314.36,0.00046301,120]
[335099403,1723824685451,-700.74,0.00046301,120]
[335099404,1723824685461,-666.41,0.00046301,120]
[335099405,1723824685470,-1019.62,0.00046301,120]
[335099406,1723824685480,-500.0,0.00046301,120]
[335099407,1723824685490,-664.99,0.00046301,120]
[335099408,1723824685499,-839.23,0.00046301,120]
[335099409,1723824685510,-4725.59,0.00046301,120]
[335099410,1723824685520,-567.41,0.00046301,120]
[335099411,1723824685529,-833.73,0.00046301,120]
[335099412,1723824685539,-1124.87,0.00046301,120]
[335099413,1723824685549,-616.41,0.00046301,120]
[335099414,1723824685558,-500.0,0.00046301,120]
[335099415,1723824685568,-628.45,0.00046301,120]
[335099416,1723824685578,-521.87684249,0.00046301,120]
[335099417,1723824685587,-519.03,0.00046301,120]
[335099418,1723824685598,-1015.36,0.00046301,120]
[335099419,1723824685608,-707.5,0.00046301,120]
[335099420,1723824685618,-6729.3,0.00046301,120]
[335099421,1723824685627,-500.0,0.00046575,120]
[335099422,1723824685638,-500.0,0.00046575,120]
[335099423,1723824685647,-500.0,0.00046575,120]
[335099424,1723824685657,-2456.91,0.00046575,120]
[335099425,1723824685666,-170.95465693,0.00046575,120]
[335099426,1723824685675,-503.41,0.00046575,120]
[335099427,1723824685686,-500.0,0.00046575,120]
[335099428,1723824685695,-500.0,0.00046575,120]
[335099429,1723824685705,-340.25693355,0.00046575,120]
[335099430,1723824685714,-500.0,0.00046575,7]
[335099431,1723824685724,-590.69,0.00046575,120]
[335099432,1723824685734,-500.0,0.00046575,120]
[335099433,1723824685743,-500.0,0.00046575,120]
[335099434,1723824685753,-645.31,0.00046575,120]
[335099435,1723824685762,-699.13,0.00046575,120]
[335099436,1723824685772,-500.0,0.00046575,120]
[335099437,1723824685783,-500.0,0.00046575,120]
[335099438,1723824685793,-200.0,0.00046575,7]
[335099439,1723824685803,-644.7,0.00046575,120]
[335099440,1723824685813,-544.51,0.00046575,120]
[335099441,1723824685822,-693.59,0.00046575,120]
[335099442,1723824685831,-548.58,0.00046575,120]
[335099443,1723824685841,-2148.57,0.00046575,120]
[335099444,1723824685852,-500.0,0.00046575,120]
[335099445,1723824685862,-500.0,0.00046575,120]
[335099446,1723824685872,-1328.88,0.00046575,120]
[335099447,1723824685882,-500.0,0.00046575,120]
[335099448,1723824685892,-500.0,0.00046575,120]
[335099449,1723824685902,-500.0,0.00046575,120]
[335099450,1723824685912,-500.0,0.00046575,120]
[335099451,1723824685922,-635.25,0.00046575,120]
[335099452,1723824685931,-500.0,0.00046575,120]
[335099453,1723824685940,-500.0,0.00046575,120]
[335099454,1723824685949,-1192.76,0.00046575,7]
[335099455,1723824685959,-500.0,0.00046575,120]
[335099456,1723824685970,-1451.49,0.00046575,60]
[335099457,1723824685980,-500.0,0.00046575,120]
[335099458,1723824685990,-500.0,0.00046575,120]
[335099459,1723824686000,-500.0,0.00046575,120]
[335099460,1723824686010,-500.0,0.00046575,120]
[335099461,1723824686020,-918.61,0.00046575,120]
[335099462,1723824686030,-500.0,0.00046575,120]
[335099463,1723824686040,-596.74,0.00046575,120]
[335099464,1723824686050,-500.0,0.00046575,120]
[335099465,1723824686059,-500.0,0.00046575,120]
[335099466,1723824686070,-500.0,0.00046575,120]
[335099467,1723824686079,-547.91,0.00046575,120]
[335099468,1723824686088,-500.0,0.00046575,120]
[335099469,1723824686100,-629.55,0.00046575,120]
[335099470,1723824686109,-643.97,0.00046575,120]
[335099471,1723824686118,-500.0,0.00046575,120]
[335099472,1723824686127,-500.0,0.00046575,120]
[335099473,1723824686137,-500.0,0.00046575,120]
[335099474,1723824686147,-500.0,0.00046575,120]
[335099475,1723824686157,-609.08,0.00046575,120]
[335099476,1723824686167,-1016.45,0.00046575,120]
[335099477,1723824686177,-788.01,0.00046575,120]
[335099478,1723824686186,-518.24,0.00046575,120]
[335099479,1723824686195,-245.26998826,0.00046575,2]
[335099480,1723824686205,-500.0,0.00046575,120]
[335099481,1723824686215,-894.34,0.00046575,120]
[335099482,1723824686224,-500.0,0.00046575,120]
[335099483,1723824686238,-643.91,0.00046575,120]
[335099484,1723824686248,-900.79,0.00046575,120]
[335099485,1723824686257,-884.47,0.00046575,120]
[335099486,1723824686267,-521.00539651,0.00046575,120]
[335099487,1723824686277,-737.86,0.00046575,120]
[335099488,1723824686288,-1177.09,0.00046575,120]
[335099489,1723824686298,-500.0,0.00046575,120]
[335099490,1723824686311,-746.07,0.00046575,120]
[335099491,1723824686321,-1036.78,0.00046575,120]
[335099492,1723824686331,-668.74,0.00046575,120]
[335099493,1723824686341,-673.85,0.00046575,120]
[335099494,1723824686352,-783.75,0.00046575,120]
[335099495,1723824686361,-902.95,0.00046575,120]
[335099496,1723824686371,-563.5,0.00046575,120]
[335099497,1723824686381,-545.31,0.00046575,120]
[335099498,1723824686390,-631.65,0.00046575,120]
[335099499,1723824686401,-500.0,0.00046575,120]
[335099500,1723824686411,-1145.47,0.00046575,120]
[335099501,1723824686421,-901.73,0.00046575,120]
[335099502,1723824686431,-500.0,0.00046575,120]
[335099503,1723824686440,-10260.67,0.00046575,120]
[335099504,1723824686450,-500.0,0.00046575,120]
[335099505,1723824686459,-764.92,0.00046575,120]
[335099506,1723824686469,-716.98,0.00046575,120]
[335099507,1723824686479,-2987.82,0.00046575,21]
[335099508,1723824686489,-666.64,0.00046575,120]
[335099509,1723824686498,-1201.98,0.00046575,120]
[335099510,1723824686508,-637.84,0.00046575,120]
[335099511,1723824686518,-2511.6,0.00046575,120]
[335099512,1723824686528,-500.0,0.00046575,120]
[335099513,1723824686538,-723.54,0.00046575,120]
[335099514,1723824686549,-576.16,0.00046575,120]
[335099515,1723824686558,-500.0,0.00046575,120]
[335099516,1723824686568,-1882.03,0.00046575,120]
[335099517,1723824686578,-1029.66,0.00046575,120]
[335099518,1723824686588,-1896.05,0.00046575,120]
[335099519,1723824686599,-4568.8,0.00046575,120]
[335099520,1723824686609,-815.8,0.00046575,120]
[335099521,1723824686619,-947.25,0.00046575,120]
[335099522,1723824686628,-797.6,0.00046575,120]
[335099523,1723824686639,-975.37,0.00046575,120]
[335099524,1723824686648,-1724.04,0.00046575,120]
[335099525,1723824686658,-1061.46,0.00046575,120]
[335099526,1723824686669,-536.96526018,0.00046575,120]
[335099527,1723824686678,-848.93,0.00046575,120]
[335099528,1723824686688,-1146.8,0.00046575,120]
[335099529,1723824686698,-500.0,0.00046575,120]
[335099530,1723824686708,-500.0,0.00046575,120]
[335099531,1723824686717,-594.83745436,0.00046575,120]
[335099532,1723824686727,-979.65,0.00046575,120]
[335099533,1723824686737,-500.0,0.00046575,120]
[335099534,1723824686747,-894.36,0.00046575,120]
[335099535,1723824686757,-500.0,0.00046575,120]
[335099536,1723824686766,-500.0,0.00046575,120]
[335099537,1723824686777,-645.74,0.00046575,120]
[335099538,1723824686787,-641.42,0.00046575,120]
[335099539,1723824686798,-1321.3,0.00046575,120]
[335099540,1723824686807,-13031.02,0.00046575,120]
[335099541,1723824686817,-936.44,0.00046575,120]
[335099542,1723824686827,-673.1,0.00046575,120]
[335099543,1723824686837,-526.95,0.00046575,120]
[335099544,1723824686847,-561.51,0.00046575,120]
[335099545,1723824686857,-500.0,0.00046575,120]
[335099546,1723824686867,-641.46,0.00046575,120]
[335099547,1723824686994,-2425.41,0.00046575,120]
[335099548,1723824687005,-1762.68,0.00046575,120]
[335099549,1723824687014,-587.10215931,0.00046575,120]
[335099550,1723824687024,-500.0,0.00046575,120]
[335099551,1723824687034,-2314.36,0.00046575,120]
[335099552,1723824687043,-700.74,0.00046575,120]
[335099553,1723824687052,-666.41,0.00046575,120]
[335099554,1723824687061,-1019.62,0.00046575,120]
[335099555,1723824687071,-500.0,0.00046575,120]
[335099556,1723824687080,-664.99,0.00046575,120]
[335099557,1723824687090,-839.23,0.00046575,120]
[335099558,1723824687102,-4725.59,0.00046575,120]
[335099559,1723824687113,-567.41,0.00046575,120]
[335099560,1723824687122,-833.73,0.00046575,120]
[335099561,1723824687132,-1124.87,0.00046575,120]
[335099562,1723824687142,-616.41,0.00046575,120]
[335099563,1723824687151,-500.0,0.00046575,120]
[335099564,1723824687160,-628.45,0.00046575,120]
[335099565,1723824687170,-519.03,0.00046575,120]
[335099566,1723824687181,-1015.36,0.00046575,120]
[335099567,1723824687191,-707.5,0.00046575,120]
[335099568,1723824687201,-6729.3,0.00046575,120]
[335099569,1723824687211,-153.03299115,0.000466,120]
[335099570,1723824687221,-2018.0,0.00046688,120]
[335099571,1723824687234,-500.0,0.00046849,120]
[335099572,1723824687243,-500.0,0.00046849,120]
[335099573,1723824687252,-500.0,0.00046849,120]
[335099574,1723824687261,-2456.91,0.00046849,120]
[335099575,1723824687271,-503.41,0.00046849,120]
[335099576,1723824687280,-500.0,0.00046849,120]
[335099577,1723824687292,-500.0,0.00046849,120]
[335099578,1723824687303,-500.0,0.00046849,7]
[335099579,1723824687313,-590.69,0.00046849,120]
[335099580,1723824687323,-500.0,0.00046849,120]
[335099581,1723824687332,-152.33284661,0.00046849,120]
[335099582,1723824687342,-645.31,0.00046849,120]
[335099583,1723824687354,-699.13,0.00046849,120]
[335099584,1723824687364,-500.0,0.00046849,120]
[335099585,1723824687373,-500.0,0.00046849,120]
[335099586,1723824687383,-200.0,0.00046849,7]
[335099587,1723824687392,-644.7,0.00046849,120]